Workbook

Sheet Chart
A1: Lunar Cycle Jitter: Terence McKenna Goddess Calendar
A2: http://www.fractal-timewave.com/mmgc/mmgc.htm
A3: ="Each lunar cycle contains "&MPC&" months ("&FMPC&" full, "&DMPC&" deficient), "&DPC&" days = "&reducefraction(DPC,7,FALSE,FALSE,TRUE)&" weeks." -> Each lunar cycle contains 130 months (69 full, 61 deficient), 3839 days = 548+3/7 weeks.
A4: Lunar years have 13 lunar months, even-numbered months have 29 days,
A5: odd-numbered months have 30 days, except that one day is removed from the last month
A6: of year numbers divisible by 10. Each calendar cycle contains one lunar cycle = 10 lunar years.
A7: Common year FDFDFDFDFDFDF=384 days, skip year FDFDFDFDFDFDD=383 days."
A8: ="Mean month = "&"29+"&reducefraction(FMPC,MPC,FALSE,FALSE,TRUE)&" days = 29d 12h 44m "&reducefraction(240*(360*FMPC-191*MPC),MPC,FALSE,FALSE,TRUE)&" seconds or about 29"&MID(FMPC/MPC,2,20)&" days = 29d 12h 44m "&ROUND(240*(360*FMPC-191*MPC)/MPC,6)&" seconds." -> Mean month = 29+69/130 days = 29d 12h 44m 18+6/13 seconds or about 29.530769230769231 days = 29d 12h 44m 18.461538 seconds.
A9: ="Duration per ''Part'' = 1/"&MPC&" day = "&reducefraction(24,MPC,FALSE,FALSE,TRUE)&" hour = "&reducefraction(1440,MPC,FALSE,FALSE,TRUE)&" minutes = "&reducefraction(86400,MPC,FALSE,FALSE,TRUE)&" seconds; one hour = "&reducefraction(MPC,24,FALSE,FALSE,TRUE)&" parts." -> Duration per ''Part'' = 1/130 day = 12/65 hour = 11+1/13 minutes = 664+8/13 seconds; one hour = 5+5/12 parts.
Q13: FALSE
Q22: 13
Q23: Selected
Q24: Month
Q25: in Year
Q26: (1 to 13)
Q34: 2
Q35: Selected
Q36: Month
Q37: in Year
Q38: (1 to 13)

Sheet Data
A1: Lunar Cycle Jitter Evaluator
A2: by Dr. Irv Bromberg, University of Toronto, Canada
A3: http://individual.utoronto.ca/intervalmath/jitter/index.html | D3: Jitter | E3: (parts)
D4: =MAX(H:H) -> 48 | E4: maximum | F4: =reducefraction(JitterMax*MPC,MPC,FALSE,FALSE,FALSE) -> 48
A5: Months per Cycle (Parts per Day): | B5: =10*13 -> 130 | C5: months (parts) | D5: =MIN(H:H) -> -178 | E5: minimum | F5: =reducefraction(JitterMin*MPC,MPC,FALSE,FALSE,FALSE) -> –(178)
A6: 30-day Months per Cycle: | B6: =7*10-1 -> 69 | C6: months | D6: =D4-D5 -> 226 | E6: range | F6: =reducefraction(JitterRange*MPC,MPC,FALSE,FALSE,FALSE) -> 226
A7: 29-day Months per Cycle: | B7: =MPC-FMPC -> 61 | C7: months | D7: ="Jitter range = "&F6&" parts = "&reducefraction(F6*24,MPC,FALSE,FALSE,FALSE)&" hours" -> Jitter range = 226 parts = 41 + 47 / 65 hours
A8: Days per Cycle (Parts per Month): | B8: =29*MPC+FMPC -> 3839 | C8: days (parts)
A9: Yerms per Cycle: | B9: =2*DPC-59*MPC -> 8 | C9: yerms | D9: Limits for Chart:
A10: Mean Month: | B10: ="29 + "&reducefraction(FMPC,MPC,FALSE,FALSE,FALSE) -> 29 + 69 / 130 | C10: days | D10: x | E10: y | F10: Hours
A11: Mean Month >29d: | B11: =FMPC/MPC -> 0.530769230769231 | C11: days | D11: =A21 -> 1 | E11: =JitterMax -> 48 | F11: =E11*24/MPC -> 8.861538462
A12: Mean Month >29d 12h 44m: | B12: =reducefraction(240*(360*FMPC-191*MPC),MPC,FALSE,FALSE,TRUE) -> 18+6/13 | C12: seconds | D12: =D11+MPC*2 -> 261 | E12: =E11 -> 48 | F12: =E12*24/MPC -> 8.861538462
A13: … or approximately: | B13: =240*(360*FMPC-191*MPC)/MPC -> 18.46153846 | C13: seconds
D14: =D11 -> 1 | E14: 0
D15: =D12 -> 261 | E15: 0
D17: =A21 -> 1 | E17: =JitterMin -> -178 | F17: =E17*24/MPC -> -32.86153846
A18: Duration per Part: | B18: =reducefraction(1440,MPC,FALSE,FALSE,FALSE) -> 11 + 1 / 13 | C18: minutes | D18: =D12 -> 261 | E18: =E17 -> -178 | F18: =E18*24/MPC -> -32.86153846
A20: Month in Cycle | B20: Lunar Year | C20: Month in Year | D20: Short Month? | E20: Month Length | F20: New Month Moment | G20: Elapsed | H20: Difference
A21: 1 | B21: 1 | C21: 1 | D21: =AND(MOD(B21,10)<>0,C21=13) -> FALSE | E21: =IF(MOD(C21,2)=1,30,29)-IF(D21,1,0) -> 30 | F21: 0 | G21: 0 | H21: =F21-G21 -> 0
A22: =A21+1 -> 2 | B22: =IF(C22=1,B21+1,B21) -> 1 | C22: =IF(C21=13,1,C21+1) -> 2 | D22: =AND(MOD(B22,10)=0,C22=13) -> FALSE | E22: =IF(MOD(C22,2)=1,30,29)-IF(D22,1,0) -> 29 | F22: =F21+PPM -> 3839 | G22: =G21+E21*PPD -> 3900 | H22: -61
A23: =A22+1 -> 3 | B23: 1 | C23: =IF(C22=13,1,C22+1) -> 3 | D23: FALSE | E23: 30 | F23: =F22+PPM -> 7678 | G23: 7670 | H23: 8
A24: 4 | B24: 1 | C24: 4 | D24: FALSE | E24: 29 | F24: 11517 | G24: 11570 | H24: -53
A25: 5 | B25: 1 | C25: 5 | D25: FALSE | E25: 30 | F25: 15356 | G25: 15340 | H25: 16
A26: 6 | B26: 1 | C26: 6 | D26: FALSE | E26: 29 | F26: 19195 | G26: 19240 | H26: -45
A27: 7 | B27: 1 | C27: 7 | D27: FALSE | E27: 30 | F27: 23034 | G27: 23010 | H27: 24
A28: 8 | B28: 1 | C28: 8 | D28: FALSE | E28: 29 | F28: 26873 | G28: 26910 | H28: -37
A29: 9 | B29: 1 | C29: 9 | D29: FALSE | E29: 30 | F29: 30712 | G29: 30680 | H29: 32
A30: 10 | B30: 1 | C30: 10 | D30: FALSE | E30: 29 | F30: 34551 | G30: 34580 | H30: -29
A31: 11 | B31: 1 | C31: 11 | D31: FALSE | E31: 30 | F31: 38390 | G31: 38350 | H31: 40
A32: 12 | B32: 1 | C32: 12 | D32: FALSE | E32: 29 | F32: 42229 | G32: 42250 | H32: -21
A33: 13 | B33: 1 | C33: 13 | D33: FALSE | E33: 30 | F33: 46068 | G33: 46020 | H33: 48
A34: 14 | B34: 2 | C34: 1 | D34: FALSE | E34: 30 | F34: 49907 | G34: 49920 | H34: -13
A35: 15 | B35: 2 | C35: 2 | D35: FALSE | E35: 29 | F35: 53746 | G35: 53820 | H35: -74
A36: 16 | B36: 2 | C36: 3 | D36: FALSE | E36: 30 | F36: 57585 | G36: 57590 | H36: -5
A37: 17 | B37: 2 | C37: 4 | D37: FALSE | E37: 29 | F37: 61424 | G37: 61490 | H37: -66
A38: 18 | B38: 2 | C38: 5 | D38: FALSE | E38: 30 | F38: 65263 | G38: 65260 | H38: 3
A39: 19 | B39: 2 | C39: 6 | D39: FALSE | E39: 29 | F39: 69102 | G39: 69160 | H39: -58
A40: 20 | B40: 2 | C40: 7 | D40: FALSE | E40: 30 | F40: 72941 | G40: 72930 | H40: 11
A41: 21 | B41: 2 | C41: 8 | D41: FALSE | E41: 29 | F41: 76780 | G41: 76830 | H41: -50
A42: 22 | B42: 2 | C42: 9 | D42: FALSE | E42: 30 | F42: 80619 | G42: 80600 | H42: 19
A43: 23 | B43: 2 | C43: 10 | D43: FALSE | E43: 29 | F43: 84458 | G43: 84500 | H43: -42
A44: 24 | B44: 2 | C44: 11 | D44: FALSE | E44: 30 | F44: 88297 | G44: 88270 | H44: 27
A45: 25 | B45: 2 | C45: 12 | D45: FALSE | E45: 29 | F45: 92136 | G45: 92170 | H45: -34
A46: 26 | B46: 2 | C46: 13 | D46: FALSE | E46: 30 | F46: 95975 | G46: 95940 | H46: 35
A47: 27 | B47: 3 | C47: 1 | D47: FALSE | E47: 30 | F47: 99814 | G47: 99840 | H47: -26
A48: 28 | B48: 3 | C48: 2 | D48: FALSE | E48: 29 | F48: 103653 | G48: 103740 | H48: -87
A49: 29 | B49: 3 | C49: 3 | D49: FALSE | E49: 30 | F49: 107492 | G49: 107510 | H49: -18
A50: 30 | B50: 3 | C50: 4 | D50: FALSE | E50: 29 | F50: 111331 | G50: 111410 | H50: -79
A51: 31 | B51: 3 | C51: 5 | D51: FALSE | E51: 30 | F51: 115170 | G51: 115180 | H51: -10
A52: 32 | B52: 3 | C52: 6 | D52: FALSE | E52: 29 | F52: 119009 | G52: 119080 | H52: -71
A53: 33 | B53: 3 | C53: 7 | D53: FALSE | E53: 30 | F53: 122848 | G53: 122850 | H53: -2
A54: 34 | B54: 3 | C54: 8 | D54: FALSE | E54: 29 | F54: 126687 | G54: 126750 | H54: -63
A55: 35 | B55: 3 | C55: 9 | D55: FALSE | E55: 30 | F55: 130526 | G55: 130520 | H55: 6
A56: =A55+1 -> 36 | B56: 3 | C56: 10 | D56: FALSE | E56: 29 | F56: 134365 | G56: 134420 | H56: -55
A57: 37 | B57: 3 | C57: 11 | D57: FALSE | E57: 30 | F57: 138204 | G57: 138190 | H57: 14
A58: 38 | B58: 3 | C58: 12 | D58: FALSE | E58: 29 | F58: 142043 | G58: 142090 | H58: -47
A59: 39 | B59: 3 | C59: 13 | D59: FALSE | E59: 30 | F59: 145882 | G59: 145860 | H59: 22
A60: 40 | B60: 4 | C60: 1 | D60: FALSE | E60: 30 | F60: 149721 | G60: 149760 | H60: -39
A61: 41 | B61: 4 | C61: 2 | D61: FALSE | E61: 29 | F61: 153560 | G61: 153660 | H61: -100
A62: 42 | B62: 4 | C62: 3 | D62: FALSE | E62: 30 | F62: 157399 | G62: 157430 | H62: -31
A63: 43 | B63: 4 | C63: 4 | D63: FALSE | E63: 29 | F63: 161238 | G63: 161330 | H63: -92
A64: 44 | B64: 4 | C64: 5 | D64: FALSE | E64: 30 | F64: 165077 | G64: 165100 | H64: -23
A65: 45 | B65: 4 | C65: 6 | D65: FALSE | E65: 29 | F65: 168916 | G65: 169000 | H65: -84
A66: 46 | B66: 4 | C66: 7 | D66: FALSE | E66: 30 | F66: 172755 | G66: 172770 | H66: -15
A67: 47 | B67: 4 | C67: 8 | D67: FALSE | E67: 29 | F67: 176594 | G67: 176670 | H67: -76
A68: 48 | B68: 4 | C68: 9 | D68: FALSE | E68: 30 | F68: 180433 | G68: 180440 | H68: -7
A69: 49 | B69: 4 | C69: 10 | D69: FALSE | E69: 29 | F69: 184272 | G69: 184340 | H69: -68
A70: 50 | B70: 4 | C70: 11 | D70: FALSE | E70: 30 | F70: 188111 | G70: 188110 | H70: 1
A71: 51 | B71: 4 | C71: 12 | D71: FALSE | E71: 29 | F71: 191950 | G71: 192010 | H71: -60
A72: 52 | B72: 4 | C72: 13 | D72: FALSE | E72: 30 | F72: 195789 | G72: 195780 | H72: 9
A73: 53 | B73: 5 | C73: 1 | D73: FALSE | E73: 30 | F73: 199628 | G73: 199680 | H73: -52
A74: 54 | B74: 5 | C74: 2 | D74: FALSE | E74: 29 | F74: 203467 | G74: 203580 | H74: -113
A75: 55 | B75: 5 | C75: 3 | D75: FALSE | E75: 30 | F75: 207306 | G75: 207350 | H75: -44
A76: 56 | B76: 5 | C76: 4 | D76: FALSE | E76: 29 | F76: 211145 | G76: 211250 | H76: -105
A77: 57 | B77: 5 | C77: 5 | D77: FALSE | E77: 30 | F77: 214984 | G77: 215020 | H77: -36
A78: 58 | B78: 5 | C78: 6 | D78: FALSE | E78: 29 | F78: 218823 | G78: 218920 | H78: -97
A79: 59 | B79: 5 | C79: 7 | D79: FALSE | E79: 30 | F79: 222662 | G79: 222690 | H79: -28
A80: 60 | B80: 5 | C80: 8 | D80: FALSE | E80: 29 | F80: 226501 | G80: 226590 | H80: -89
A81: 61 | B81: 5 | C81: 9 | D81: FALSE | E81: 30 | F81: 230340 | G81: 230360 | H81: -20
A82: 62 | B82: 5 | C82: 10 | D82: FALSE | E82: 29 | F82: 234179 | G82: 234260 | H82: -81
A83: 63 | B83: 5 | C83: 11 | D83: FALSE | E83: 30 | F83: 238018 | G83: 238030 | H83: -12
A84: 64 | B84: 5 | C84: 12 | D84: FALSE | E84: 29 | F84: 241857 | G84: 241930 | H84: -73
A85: 65 | B85: 5 | C85: 13 | D85: FALSE | E85: 30 | F85: 245696 | G85: 245700 | H85: =F85-G85 -> -4
A86: 66 | B86: =IF(C86=1,B85+1,B85) -> 6 | C86: 1 | D86: =AND(MOD(B86,10)=0,C86=13) -> FALSE | E86: =IF(MOD(C86,2)=1,30,29)-IF(D86,1,0) -> 30 | F86: 249535 | G86: =G85+E85*PPD -> 249600 | H86: -65
A87: 67 | B87: 6 | C87: =IF(C86=13,1,C86+1) -> 2 | D87: FALSE | E87: 29 | F87: =F86+PPM -> 253374 | G87: 253500 | H87: -126
A88: 68 | B88: 6 | C88: 3 | D88: FALSE | E88: 30 | F88: 257213 | G88: 257270 | H88: -57
A89: 69 | B89: 6 | C89: 4 | D89: FALSE | E89: 29 | F89: 261052 | G89: 261170 | H89: -118
A90: 70 | B90: 6 | C90: 5 | D90: FALSE | E90: 30 | F90: 264891 | G90: 264940 | H90: -49
A91: 71 | B91: 6 | C91: 6 | D91: FALSE | E91: 29 | F91: 268730 | G91: 268840 | H91: -110
A92: 72 | B92: 6 | C92: 7 | D92: FALSE | E92: 30 | F92: 272569 | G92: 272610 | H92: -41
A93: 73 | B93: 6 | C93: 8 | D93: FALSE | E93: 29 | F93: 276408 | G93: 276510 | H93: -102
A94: 74 | B94: 6 | C94: 9 | D94: FALSE | E94: 30 | F94: 280247 | G94: 280280 | H94: -33
A95: 75 | B95: 6 | C95: 10 | D95: FALSE | E95: 29 | F95: 284086 | G95: 284180 | H95: -94
A96: 76 | B96: 6 | C96: 11 | D96: FALSE | E96: 30 | F96: 287925 | G96: 287950 | H96: -25
A97: 77 | B97: 6 | C97: 12 | D97: FALSE | E97: 29 | F97: 291764 | G97: 291850 | H97: -86
A98: 78 | B98: 6 | C98: 13 | D98: FALSE | E98: 30 | F98: 295603 | G98: 295620 | H98: -17
A99: 79 | B99: 7 | C99: 1 | D99: FALSE | E99: 30 | F99: 299442 | G99: 299520 | H99: -78
A100: 80 | B100: 7 | C100: 2 | D100: FALSE | E100: 29 | F100: 303281 | G100: 303420 | H100: -139
A101: 81 | B101: 7 | C101: 3 | D101: FALSE | E101: 30 | F101: 307120 | G101: 307190 | H101: -70
A102: 82 | B102: 7 | C102: 4 | D102: FALSE | E102: 29 | F102: 310959 | G102: 311090 | H102: -131
A103: 83 | B103: 7 | C103: 5 | D103: FALSE | E103: 30 | F103: 314798 | G103: 314860 | H103: -62
A104: 84 | B104: 7 | C104: 6 | D104: FALSE | E104: 29 | F104: 318637 | G104: 318760 | H104: -123
A105: 85 | B105: 7 | C105: 7 | D105: FALSE | E105: 30 | F105: 322476 | G105: 322530 | H105: -54
A106: 86 | B106: 7 | C106: 8 | D106: FALSE | E106: 29 | F106: 326315 | G106: 326430 | H106: -115
A107: 87 | B107: 7 | C107: 9 | D107: FALSE | E107: 30 | F107: 330154 | G107: 330200 | H107: -46
A108: 88 | B108: 7 | C108: 10 | D108: FALSE | E108: 29 | F108: 333993 | G108: 334100 | H108: -107
A109: 89 | B109: 7 | C109: 11 | D109: FALSE | E109: 30 | F109: 337832 | G109: 337870 | H109: -38
A110: 90 | B110: 7 | C110: 12 | D110: FALSE | E110: 29 | F110: 341671 | G110: 341770 | H110: -99
A111: 91 | B111: 7 | C111: 13 | D111: FALSE | E111: 30 | F111: 345510 | G111: 345540 | H111: -30
A112: 92 | B112: 8 | C112: 1 | D112: FALSE | E112: 30 | F112: 349349 | G112: 349440 | H112: -91
A113: 93 | B113: 8 | C113: 2 | D113: FALSE | E113: 29 | F113: 353188 | G113: 353340 | H113: -152
A114: 94 | B114: 8 | C114: 3 | D114: FALSE | E114: 30 | F114: 357027 | G114: 357110 | H114: -83
A115: 95 | B115: 8 | C115: 4 | D115: FALSE | E115: 29 | F115: 360866 | G115: 361010 | H115: -144
A116: 96 | B116: 8 | C116: 5 | D116: FALSE | E116: 30 | F116: 364705 | G116: 364780 | H116: -75
A117: 97 | B117: 8 | C117: 6 | D117: FALSE | E117: 29 | F117: 368544 | G117: 368680 | H117: -136
A118: 98 | B118: 8 | C118: 7 | D118: FALSE | E118: 30 | F118: 372383 | G118: 372450 | H118: -67
A119: 99 | B119: 8 | C119: 8 | D119: FALSE | E119: 29 | F119: 376222 | G119: 376350 | H119: -128
A120: =A119+1 -> 100 | B120: 8 | C120: 9 | D120: FALSE | E120: 30 | F120: 380061 | G120: 380120 | H120: -59
A121: 101 | B121: 8 | C121: 10 | D121: FALSE | E121: 29 | F121: 383900 | G121: 384020 | H121: -120
A122: 102 | B122: 8 | C122: 11 | D122: FALSE | E122: 30 | F122: 387739 | G122: 387790 | H122: -51
A123: 103 | B123: 8 | C123: 12 | D123: FALSE | E123: 29 | F123: 391578 | G123: 391690 | H123: -112
A124: 104 | B124: 8 | C124: 13 | D124: FALSE | E124: 30 | F124: 395417 | G124: 395460 | H124: -43
A125: 105 | B125: 9 | C125: 1 | D125: FALSE | E125: 30 | F125: 399256 | G125: 399360 | H125: -104
A126: 106 | B126: 9 | C126: 2 | D126: FALSE | E126: 29 | F126: 403095 | G126: 403260 | H126: -165
A127: 107 | B127: 9 | C127: 3 | D127: FALSE | E127: 30 | F127: 406934 | G127: 407030 | H127: -96
A128: 108 | B128: 9 | C128: 4 | D128: FALSE | E128: 29 | F128: 410773 | G128: 410930 | H128: -157
A129: 109 | B129: 9 | C129: 5 | D129: FALSE | E129: 30 | F129: 414612 | G129: 414700 | H129: -88
A130: 110 | B130: 9 | C130: 6 | D130: FALSE | E130: 29 | F130: 418451 | G130: 418600 | H130: -149
A131: 111 | B131: 9 | C131: 7 | D131: FALSE | E131: 30 | F131: 422290 | G131: 422370 | H131: -80
A132: 112 | B132: 9 | C132: 8 | D132: FALSE | E132: 29 | F132: 426129 | G132: 426270 | H132: -141
A133: 113 | B133: 9 | C133: 9 | D133: FALSE | E133: 30 | F133: 429968 | G133: 430040 | H133: -72
A134: 114 | B134: 9 | C134: 10 | D134: FALSE | E134: 29 | F134: 433807 | G134: 433940 | H134: -133
A135: 115 | B135: 9 | C135: 11 | D135: FALSE | E135: 30 | F135: 437646 | G135: 437710 | H135: -64
A136: 116 | B136: 9 | C136: 12 | D136: FALSE | E136: 29 | F136: 441485 | G136: 441610 | H136: -125
A137: 117 | B137: 9 | C137: 13 | D137: FALSE | E137: 30 | F137: 445324 | G137: 445380 | H137: -56
A138: 118 | B138: 10 | C138: 1 | D138: FALSE | E138: 30 | F138: 449163 | G138: 449280 | H138: -117
A139: 119 | B139: 10 | C139: 2 | D139: FALSE | E139: 29 | F139: 453002 | G139: 453180 | H139: -178
A140: 120 | B140: 10 | C140: 3 | D140: FALSE | E140: 30 | F140: 456841 | G140: 456950 | H140: -109
A141: 121 | B141: 10 | C141: 4 | D141: FALSE | E141: 29 | F141: 460680 | G141: 460850 | H141: -170
A142: 122 | B142: 10 | C142: 5 | D142: FALSE | E142: 30 | F142: 464519 | G142: 464620 | H142: -101
A143: 123 | B143: 10 | C143: 6 | D143: FALSE | E143: 29 | F143: 468358 | G143: 468520 | H143: -162
A144: 124 | B144: 10 | C144: 7 | D144: FALSE | E144: 30 | F144: 472197 | G144: 472290 | H144: -93
A145: 125 | B145: 10 | C145: 8 | D145: FALSE | E145: 29 | F145: 476036 | G145: 476190 | H145: -154
A146: 126 | B146: 10 | C146: 9 | D146: FALSE | E146: 30 | F146: 479875 | G146: 479960 | H146: -85
A147: 127 | B147: 10 | C147: 10 | D147: FALSE | E147: 29 | F147: 483714 | G147: 483860 | H147: -146
A148: 128 | B148: 10 | C148: 11 | D148: FALSE | E148: 30 | F148: 487553 | G148: 487630 | H148: -77
A149: 129 | B149: 10 | C149: 12 | D149: FALSE | E149: 29 | F149: 491392 | G149: 491530 | H149: =F149-G149 -> -138
A150: 130 | B150: =IF(C150=1,B149+1,B149) -> 10 | C150: 13 | D150: =AND(MOD(B150,10)=0,C150=13) -> TRUE | E150: =IF(MOD(C150,2)=1,30,29)-IF(D150,1,0) -> 29 | F150: 495231 | G150: =G149+E149*PPD -> 495300 | H150: -69
A151: 131 | B151: 11 | C151: =IF(C150=13,1,C150+1) -> 1 | D151: FALSE | E151: 30 | F151: =F150+PPM -> 499070 | G151: 499070 | H151: 0
A152: 132 | B152: 11 | C152: 2 | D152: FALSE | E152: 29 | F152: 502909 | G152: 502970 | H152: -61
A153: 133 | B153: 11 | C153: 3 | D153: FALSE | E153: 30 | F153: 506748 | G153: 506740 | H153: 8
A154: 134 | B154: 11 | C154: 4 | D154: FALSE | E154: 29 | F154: 510587 | G154: 510640 | H154: -53
A155: 135 | B155: 11 | C155: 5 | D155: FALSE | E155: 30 | F155: 514426 | G155: 514410 | H155: 16
A156: 136 | B156: 11 | C156: 6 | D156: FALSE | E156: 29 | F156: 518265 | G156: 518310 | H156: -45
A157: 137 | B157: 11 | C157: 7 | D157: FALSE | E157: 30 | F157: 522104 | G157: 522080 | H157: 24
A158: 138 | B158: 11 | C158: 8 | D158: FALSE | E158: 29 | F158: 525943 | G158: 525980 | H158: -37
A159: 139 | B159: 11 | C159: 9 | D159: FALSE | E159: 30 | F159: 529782 | G159: 529750 | H159: 32
A160: 140 | B160: 11 | C160: 10 | D160: FALSE | E160: 29 | F160: 533621 | G160: 533650 | H160: -29
A161: 141 | B161: 11 | C161: 11 | D161: FALSE | E161: 30 | F161: 537460 | G161: 537420 | H161: 40
A162: 142 | B162: 11 | C162: 12 | D162: FALSE | E162: 29 | F162: 541299 | G162: 541320 | H162: -21
A163: 143 | B163: 11 | C163: 13 | D163: FALSE | E163: 30 | F163: 545138 | G163: 545090 | H163: 48
A164: 144 | B164: 12 | C164: 1 | D164: FALSE | E164: 30 | F164: 548977 | G164: 548990 | H164: -13
A165: 145 | B165: 12 | C165: 2 | D165: FALSE | E165: 29 | F165: 552816 | G165: 552890 | H165: -74
A166: 146 | B166: 12 | C166: 3 | D166: FALSE | E166: 30 | F166: 556655 | G166: 556660 | H166: -5
A167: 147 | B167: 12 | C167: 4 | D167: FALSE | E167: 29 | F167: 560494 | G167: 560560 | H167: -66
A168: 148 | B168: 12 | C168: 5 | D168: FALSE | E168: 30 | F168: 564333 | G168: 564330 | H168: 3
A169: 149 | B169: 12 | C169: 6 | D169: FALSE | E169: 29 | F169: 568172 | G169: 568230 | H169: -58
A170: 150 | B170: 12 | C170: 7 | D170: FALSE | E170: 30 | F170: 572011 | G170: 572000 | H170: 11
A171: 151 | B171: 12 | C171: 8 | D171: FALSE | E171: 29 | F171: 575850 | G171: 575900 | H171: -50
A172: 152 | B172: 12 | C172: 9 | D172: FALSE | E172: 30 | F172: 579689 | G172: 579670 | H172: 19
A173: 153 | B173: 12 | C173: 10 | D173: FALSE | E173: 29 | F173: 583528 | G173: 583570 | H173: -42
A174: 154 | B174: 12 | C174: 11 | D174: FALSE | E174: 30 | F174: 587367 | G174: 587340 | H174: 27
A175: 155 | B175: 12 | C175: 12 | D175: FALSE | E175: 29 | F175: 591206 | G175: 591240 | H175: -34
A176: 156 | B176: 12 | C176: 13 | D176: FALSE | E176: 30 | F176: 595045 | G176: 595010 | H176: 35
A177: 157 | B177: 13 | C177: 1 | D177: FALSE | E177: 30 | F177: 598884 | G177: 598910 | H177: -26
A178: 158 | B178: 13 | C178: 2 | D178: FALSE | E178: 29 | F178: 602723 | G178: 602810 | H178: -87
A179: 159 | B179: 13 | C179: 3 | D179: FALSE | E179: 30 | F179: 606562 | G179: 606580 | H179: -18
A180: 160 | B180: 13 | C180: 4 | D180: FALSE | E180: 29 | F180: 610401 | G180: 610480 | H180: -79
A181: 161 | B181: 13 | C181: 5 | D181: FALSE | E181: 30 | F181: 614240 | G181: 614250 | H181: -10
A182: 162 | B182: 13 | C182: 6 | D182: FALSE | E182: 29 | F182: 618079 | G182: 618150 | H182: -71
A183: 163 | B183: 13 | C183: 7 | D183: FALSE | E183: 30 | F183: 621918 | G183: 621920 | H183: -2
A184: =A183+1 -> 164 | B184: 13 | C184: 8 | D184: FALSE | E184: 29 | F184: 625757 | G184: 625820 | H184: -63
A185: 165 | B185: 13 | C185: 9 | D185: FALSE | E185: 30 | F185: 629596 | G185: 629590 | H185: 6
A186: 166 | B186: 13 | C186: 10 | D186: FALSE | E186: 29 | F186: 633435 | G186: 633490 | H186: -55
A187: 167 | B187: 13 | C187: 11 | D187: FALSE | E187: 30 | F187: 637274 | G187: 637260 | H187: 14
A188: 168 | B188: 13 | C188: 12 | D188: FALSE | E188: 29 | F188: 641113 | G188: 641160 | H188: -47
A189: 169 | B189: 13 | C189: 13 | D189: FALSE | E189: 30 | F189: 644952 | G189: 644930 | H189: 22
A190: 170 | B190: 14 | C190: 1 | D190: FALSE | E190: 30 | F190: 648791 | G190: 648830 | H190: -39
A191: 171 | B191: 14 | C191: 2 | D191: FALSE | E191: 29 | F191: 652630 | G191: 652730 | H191: -100
A192: 172 | B192: 14 | C192: 3 | D192: FALSE | E192: 30 | F192: 656469 | G192: 656500 | H192: -31
A193: 173 | B193: 14 | C193: 4 | D193: FALSE | E193: 29 | F193: 660308 | G193: 660400 | H193: -92
A194: 174 | B194: 14 | C194: 5 | D194: FALSE | E194: 30 | F194: 664147 | G194: 664170 | H194: -23
A195: 175 | B195: 14 | C195: 6 | D195: FALSE | E195: 29 | F195: 667986 | G195: 668070 | H195: -84
A196: 176 | B196: 14 | C196: 7 | D196: FALSE | E196: 30 | F196: 671825 | G196: 671840 | H196: -15
A197: 177 | B197: 14 | C197: 8 | D197: FALSE | E197: 29 | F197: 675664 | G197: 675740 | H197: -76
A198: 178 | B198: 14 | C198: 9 | D198: FALSE | E198: 30 | F198: 679503 | G198: 679510 | H198: -7
A199: 179 | B199: 14 | C199: 10 | D199: FALSE | E199: 29 | F199: 683342 | G199: 683410 | H199: -68
A200: 180 | B200: 14 | C200: 11 | D200: FALSE | E200: 30 | F200: 687181 | G200: 687180 | H200: 1
A201: 181 | B201: 14 | C201: 12 | D201: FALSE | E201: 29 | F201: 691020 | G201: 691080 | H201: -60
A202: 182 | B202: 14 | C202: 13 | D202: FALSE | E202: 30 | F202: 694859 | G202: 694850 | H202: 9
... 91 more rows

Sheet Years
A1: Month in Cycle | B1: Lunar Year | C1: New Year Moment | D1: Elapsed | E1: Difference
A2: =StartMonth -> 13 | B2: 1 | C2: =(A2-1)*PPM -> 46068 | D2: =LOOKUP(A2,Data!A$21:A$293,Data!G$21:G$293) -> 46020 | E2: =C2-D2 -> 48
A3: =A2+13 -> 26 | B3: =B2+1 -> 2 | C3: =(A3-1)*PPM -> 95975 | D3: =LOOKUP(A3,Data!A$21:A$293,Data!G$21:G$293) -> 95940 | E3: =C3-D3 -> 35
A4: =A3+13 -> 39 | B4: =B3+1 -> 3 | C4: 145882 | D4: =LOOKUP(A4,Data!A$21:A$293,Data!G$21:G$293) -> 145860 | E4: 22
A5: 52 | B5: 4 | C5: 195789 | D5: =LOOKUP(A5,Data!A$21:A$293,Data!G$21:G$293) -> 195780 | E5: 9
A6: 65 | B6: 5 | C6: 245696 | D6: =LOOKUP(A6,Data!A$21:A$293,Data!G$21:G$293) -> 245700 | E6: -4
A7: 78 | B7: 6 | C7: 295603 | D7: =LOOKUP(A7,Data!A$21:A$293,Data!G$21:G$293) -> 295620 | E7: -17
A8: 91 | B8: 7 | C8: 345510 | D8: =LOOKUP(A8,Data!A$21:A$293,Data!G$21:G$293) -> 345540 | E8: -30
A9: 104 | B9: 8 | C9: 395417 | D9: =LOOKUP(A9,Data!A$21:A$293,Data!G$21:G$293) -> 395460 | E9: -43
A10: 117 | B10: 9 | C10: 445324 | D10: =LOOKUP(A10,Data!A$21:A$293,Data!G$21:G$293) -> 445380 | E10: -56
A11: 130 | B11: 10 | C11: 495231 | D11: =LOOKUP(A11,Data!A$21:A$293,Data!G$21:G$293) -> 495300 | E11: -69
A12: 143 | B12: 11 | C12: 545138 | D12: =LOOKUP(A12,Data!A$21:A$293,Data!G$21:G$293) -> 545090 | E12: 48
A13: 156 | B13: 12 | C13: 595045 | D13: =LOOKUP(A13,Data!A$21:A$293,Data!G$21:G$293) -> 595010 | E13: 35
A14: 169 | B14: 13 | C14: 644952 | D14: =LOOKUP(A14,Data!A$21:A$293,Data!G$21:G$293) -> 644930 | E14: 22
A15: 182 | B15: 14 | C15: 694859 | D15: =LOOKUP(A15,Data!A$21:A$293,Data!G$21:G$293) -> 694850 | E15: 9
A16: 195 | B16: 15 | C16: 744766 | D16: =LOOKUP(A16,Data!A$21:A$293,Data!G$21:G$293) -> 744770 | E16: -4
A17: 208 | B17: 16 | C17: 794673 | D17: =LOOKUP(A17,Data!A$21:A$293,Data!G$21:G$293) -> 794690 | E17: -17
A18: 221 | B18: 17 | C18: 844580 | D18: =LOOKUP(A18,Data!A$21:A$293,Data!G$21:G$293) -> 844610 | E18: -30
A19: 234 | B19: 18 | C19: 894487 | D19: =LOOKUP(A19,Data!A$21:A$293,Data!G$21:G$293) -> 894530 | E19: -43
A20: 247 | B20: 19 | C20: 944394 | D20: =LOOKUP(A20,Data!A$21:A$293,Data!G$21:G$293) -> 944450 | E20: -56
A21: 260 | B21: 20 | C21: 994301 | D21: =LOOKUP(A21,Data!A$21:A$293,Data!G$21:G$293) -> 994370 | E21: -69
A22: 273 | B22: 21 | C22: 1044208 | D22: =LOOKUP(A22,Data!A$21:A$293,Data!G$21:G$293) -> 1044160 | E22: 48

Sheet Years2
A1: Month in Cycle | B1: Lunar Year | C1: New Year Moment | D1: Elapsed | E1: Difference
A2: =StartMonth2 -> 2 | B2: 1 | C2: =(A2-1)*PPM -> 3839 | D2: =LOOKUP(A2,Data!A$21:A$293,Data!G$21:G$293) -> 3900 | E2: =C2-D2 -> -61
A3: =A2+13 -> 15 | B3: =B2+1 -> 2 | C3: 53746 | D3: =LOOKUP(A3,Data!A$21:A$293,Data!G$21:G$293) -> 53820 | E3: -74
A4: 28 | B4: 3 | C4: 103653 | D4: =LOOKUP(A4,Data!A$21:A$293,Data!G$21:G$293) -> 103740 | E4: -87
A5: 41 | B5: 4 | C5: 153560 | D5: =LOOKUP(A5,Data!A$21:A$293,Data!G$21:G$293) -> 153660 | E5: -100
A6: 54 | B6: 5 | C6: 203467 | D6: =LOOKUP(A6,Data!A$21:A$293,Data!G$21:G$293) -> 203580 | E6: -113
A7: 67 | B7: 6 | C7: 253374 | D7: =LOOKUP(A7,Data!A$21:A$293,Data!G$21:G$293) -> 253500 | E7: -126
A8: 80 | B8: 7 | C8: 303281 | D8: =LOOKUP(A8,Data!A$21:A$293,Data!G$21:G$293) -> 303420 | E8: -139
A9: 93 | B9: 8 | C9: 353188 | D9: =LOOKUP(A9,Data!A$21:A$293,Data!G$21:G$293) -> 353340 | E9: -152
A10: 106 | B10: 9 | C10: 403095 | D10: =LOOKUP(A10,Data!A$21:A$293,Data!G$21:G$293) -> 403260 | E10: -165
A11: 119 | B11: 10 | C11: 453002 | D11: =LOOKUP(A11,Data!A$21:A$293,Data!G$21:G$293) -> 453180 | E11: -178
A12: 132 | B12: 11 | C12: 502909 | D12: =LOOKUP(A12,Data!A$21:A$293,Data!G$21:G$293) -> 502970 | E12: -61
A13: 145 | B13: 12 | C13: 552816 | D13: =LOOKUP(A13,Data!A$21:A$293,Data!G$21:G$293) -> 552890 | E13: -74
A14: 158 | B14: 13 | C14: 602723 | D14: =LOOKUP(A14,Data!A$21:A$293,Data!G$21:G$293) -> 602810 | E14: -87
A15: 171 | B15: 14 | C15: 652630 | D15: =LOOKUP(A15,Data!A$21:A$293,Data!G$21:G$293) -> 652730 | E15: -100
A16: 184 | B16: 15 | C16: 702537 | D16: =LOOKUP(A16,Data!A$21:A$293,Data!G$21:G$293) -> 702650 | E16: -113
A17: 197 | B17: 16 | C17: 752444 | D17: =LOOKUP(A17,Data!A$21:A$293,Data!G$21:G$293) -> 752570 | E17: -126
A18: 210 | B18: 17 | C18: 802351 | D18: =LOOKUP(A18,Data!A$21:A$293,Data!G$21:G$293) -> 802490 | E18: -139
A19: 223 | B19: 18 | C19: 852258 | D19: =LOOKUP(A19,Data!A$21:A$293,Data!G$21:G$293) -> 852410 | E19: -152
A20: 236 | B20: 19 | C20: 902165 | D20: =LOOKUP(A20,Data!A$21:A$293,Data!G$21:G$293) -> 902330 | E20: -165
A21: 249 | B21: 20 | C21: 952072 | D21: =LOOKUP(A21,Data!A$21:A$293,Data!G$21:G$293) -> 952250 | E21: -178
A22: 262 | B22: 21 | C22: 1001979 | D22: =LOOKUP(A22,Data!A$21:A$293,Data!G$21:G$293) -> 1002040 | E22: -61

Sheet Rules
A1: Lunar year has 13 months
A2: 470 thirteen-month lunar years per cycle
A3: =470*13 -> 6110 | B3: months
A4: odd-numbered months have 30 days, even numbered months have 29 days
A5: so common years have 7 full months and 6 deficient months
A6: length of common year = | B6: =6*29+7*30 -> 384
A7: but when the year number is divisible by 10 or 235 one day is removed from the last month
A8: so instead of having | B8: =7*470 -> 3290 | C8: full months per cycle
B9: 47 | C9: are removed for years divisible by 10
B10: 1 | C10: is removed for years divisible by 235 (470 is already a leap year because it is divisible by 10)
B11: =B8-B9-B10 -> 3242
A12: ="so the mean month = 29+"&B11&"/"&A3&" days = 29+"&reducefraction(3242,6110,FALSE,FALSE,TRUE)&" days" -> so the mean month = 29+3242/6110 days = 29+1621/3055 days
A13: and so the overall calendar cycle is a double lunar cycle.

Sheet Zoom
A1: 0 | B1: = Current Zoom Level
A2: Level | B2: Months | C2: MajorTick | D2: MinorTick | E2: Shift | F2: Connect | G2: Years | H2: YearsMajor | I2: YearsMinor
A3: =ROW()-3 -> 0 | B3: =2*MPC -> 260 | C3: 13 | D3: 13 | F3: FALSE | G3: =B3/13 -> 20 | H3: 1 | I3: 1
A4: =ROW()-3 -> 1 | B4: =B3/2 -> 130 | C4: 13 | D4: 1 | E4: =B4/2 -> 65 | F4: TRUE | G4: =B4/13 -> 10 | H4: 1 | I4: =1/13 -> 0.07692307692
A5: =ROW()-3 -> 2 | B5: =B4/2 -> 65 | C5: 13 | D5: 1 | E5: 26 | F5: TRUE | G5: =B5/13 -> 5 | H5: 1 | I5: =1/13 -> 0.07692307692
A6: =ROW()-3 -> 3 | B6: 26 | C6: 1 | D6: 1 | E6: 13 | F6: TRUE | G6: =B6/13 -> 2 | H6: 1 | I6: =1/13 -> 0.07692307692
A7: =ROW()-3 -> 4 | B7: =B6/2 -> 13 | C7: 1 | D7: 1 | E7: 13 | F7: TRUE | G7: =B7/13 -> 1 | H7: 1 | I7: =1/13 -> 0.07692307692

Sheet Labels
A1: Lunar Year | B1: Hours | C1: ="Span "&B2-B28&"h" -> Span 78h
A2: 21 | B2: 30
A3: =A2 -> 21 | B3: =B2-3 -> 27
A4: =A3 -> 21 | B4: =B3-3 -> 24
A5: =A4 -> 21 | B5: 21
A6: =A5 -> 21 | B6: 18
A7: 21 | B7: 15
A8: 21 | B8: 12
A9: 21 | B9: 9
A10: 21 | B10: 6
A11: 21 | B11: 3
A12: 21 | B12: 0
A13: 21 | B13: -3
A14: 21 | B14: -6
A15: 21 | B15: -9
A16: =A15 -> 21 | B16: =B15-3 -> -12
A17: 21 | B17: -15
A18: 21 | B18: -18
A19: 21 | B19: -21
A20: 21 | B20: -24
A21: 21 | B21: -27
A22: 21 | B22: -30
A23: 21 | B23: -33
A24: =A23 -> 21 | B24: =B23-3 -> -36
A25: =A24 -> 21 | B25: =B24-3 -> -39
A26: =A25 -> 21 | B26: =B25-3 -> -42
A27: =A26 -> 21 | B27: =B26-3 -> -45
A28: =A27 -> 21 | B28: =B27-3 -> -48
